[Event "Titled Tuesday Blitz April 4 Early 2023"]
[White "Iliaguev, Nisim"]
[Black "Mazurkiewicz, Michal"]
[WhiteFideId "2817276"]
[BlackFideId "1124943"]
[WhiteElo "2241"]
[BlackElo "2054"]
[Result "1-0"]
[Round "02"]
[TimeControl "180+2"]
[Date "2023.04.04"]
[WhiteClock "0:00:21"]
[BlackClock "0:00:02"]

1. d4 {[%clk 0:02:59]}  Nf6 {[%clk 0:02:59]} 2. Nf3 {[%clk 0:02:59]}  g6 {[%clk 0:02:58]} 3. g3 {[%clk 0:02:58]}  Bg7 {[%clk 0:02:58]} 4. Bg2 {[%clk 0:02:54]}  O-O {[%clk 0:02:59]} 5. O-O {[%clk 0:02:54]}  d6 {[%clk 0:03:00]} 6. b3 {[%clk 0:02:53]}  Nbd7 {[%clk 0:02:51]} 7. Bb2 {[%clk 0:02:53]}  Re8 {[%clk 0:02:50]} 8. c4 {[%clk 0:02:52]}  c6 {[%clk 0:02:51]} 9. Nc3 {[%clk 0:02:50]}  e5 {[%clk 0:02:50]} 10. dxe5 {[%clk 0:02:41]}  dxe5 {[%clk 0:02:50]} 11. Qc2 {[%clk 0:01:45]}  e4 {[%clk 0:02:40]} 12. Ng5 {[%clk 0:01:43]}  e3 {[%clk 0:02:32]} 13. f4 {[%clk 0:01:43]}  Nc5 {[%clk 0:02:23]} 14. Rad1 {[%clk 0:01:43]}  Qe7 {[%clk 0:02:23]} 15. b4 {[%clk 0:01:41]}  Bf5 {[%clk 0:02:21]} 16. Qc1 {[%clk 0:01:41]}  Nce4 {[%clk 0:01:37]} 17. Ncxe4 {[%clk 0:01:41]}  Nxe4 {[%clk 0:01:37]} 18. Bxg7 {[%clk 0:01:42]}  Kxg7 {[%clk 0:01:35]} 19. Nxe4 {[%clk 0:01:41]}  Bxe4 {[%clk 0:01:35]} 20. c5 {[%clk 0:01:28]}  Bxg2 {[%clk 0:01:34]} 21. Kxg2 {[%clk 0:01:28]}  Qe4+ {[%clk 0:01:34]} 22. Rf3 {[%clk 0:01:29]}  Qxb4 {[%clk 0:01:07]} 23. Rxe3 {[%clk 0:01:28]}  Re4 {[%clk 0:01:07]} 24. a3 {[%clk 0:01:23]}  Qa4 {[%clk 0:01:05]} 25. Qc3+ {[%clk 0:01:21]}  Kg8 {[%clk 0:01:05]} 26. Rd7 {[%clk 0:01:18]}  Rae8 {[%clk 0:00:58]} 27. Qf6 {[%clk 0:00:52]}  Qc4 {[%clk 0:00:58]} 28. Rxe4 {[%clk 0:00:52]}  Qxe4+ {[%clk 0:00:58]} 29. Kh3 {[%clk 0:00:52]}  Rf8 {[%clk 0:00:31]} 30. Re7 {[%clk 0:00:46]}  Qc4 {[%clk 0:00:27]} 31. Qe5 {[%clk 0:00:44]}  b5 {[%clk 0:00:20]} 32. Rxa7 {[%clk 0:00:42]}  Rd8 {[%clk 0:00:17]} 33. Rc7 {[%clk 0:00:39]}  h5 {[%clk 0:00:16]} 34. Rxc6 {[%clk 0:00:38]}  Qc2 {[%clk 0:00:13]} 35. Rd6 {[%clk 0:00:36]}  Rf8 {[%clk 0:00:13]} 36. c6 {[%clk 0:00:36]}  Rc8 {[%clk 0:00:12]} 37. Qxb5 {[%clk 0:00:32]}  Qe4 {[%clk 0:00:06]} 38. Qe5 {[%clk 0:00:29]}  Qh1 {[%clk 0:00:05]} 39. c7 {[%clk 0:00:24]}  Qf1+ {[%clk 0:00:04]} 40. Kh4 {[%clk 0:00:24]}  Qg2 {[%clk 0:00:05]} 41. Rd8+ {[%clk 0:00:21]}  Kh7 {[%clk 0:00:02]} 42. Qh8# {[%clk 0:00:21]} 1-0


[Site "https://www.chess.com"]

[Event "Titled Tuesday Blitz April 4 Early 2023"]
[White "Nazari, Arad"]
[Black "Mazibuko, Khanya"]
[WhiteFideId "12577324"]
[BlackFideId "14321041"]
[WhiteElo "2242"]
[BlackElo "1873"]
[Result "0-1"]
[Round "02"]
[TimeControl "180+2"]
[Date "2023.04.04"]
[WhiteClock "0:00:04"]
[BlackClock "0:00:15"]

1. e4 {[%clk 0:03:00]}  e5 {[%clk 0:02:52]} 2. f4 {[%clk 0:03:00]}  d5 {[%clk 0:02:52]} 3. exd5 {[%clk 0:02:59]}  exf4 {[%clk 0:02:51]} 4. Nf3 {[%clk 0:02:59]}  Nf6 {[%clk 0:02:51]} 5. Bb5+ {[%clk 0:03:00]}  c6 {[%clk 0:02:51]} 6. dxc6 {[%clk 0:03:00]}  Nxc6 {[%clk 0:02:52]} 7. Nc3 {[%clk 0:02:57]}  Bd6 {[%clk 0:02:49]} 8. Qe2+ {[%clk 0:02:57]}  Be6 {[%clk 0:02:48]} 9. Nd4 {[%clk 0:02:57]}  Qd7 {[%clk 0:02:23]} 10. Nxe6 {[%clk 0:02:50]}  Qxe6 {[%clk 0:02:20]} 11. Qxe6+ {[%clk 0:02:16]}  fxe6 {[%clk 0:02:21]} 12. b3 {[%clk 0:02:14]}  O-O-O {[%clk 0:02:10]} 13. Bxc6 {[%clk 0:02:13]}  bxc6 {[%clk 0:02:10]} 14. Bb2 {[%clk 0:02:13]}  e5 {[%clk 0:02:05]} 15. O-O-O {[%clk 0:02:13]}  e4 {[%clk 0:02:04]} 16. Rhf1 {[%clk 0:02:13]}  Rhe8 {[%clk 0:02:00]} 17. Rde1 {[%clk 0:02:13]}  g5 {[%clk 0:01:59]} 18. Re2 {[%clk 0:01:26]}  Re6 {[%clk 0:01:43]} 19. Nd1 {[%clk 0:01:10]}  Nd5 {[%clk 0:01:35]} 20. Rfe1 {[%clk 0:00:57]}  Rde8 {[%clk 0:01:35]} 21. Nf2 {[%clk 0:00:52]}  e3 {[%clk 0:01:34]} 22. dxe3 {[%clk 0:00:46]}  Rxe3 {[%clk 0:01:33]} 23. Rxe3 {[%clk 0:00:28]}  fxe3 {[%clk 0:01:32]} 24. Ng4 {[%clk 0:00:19]}  h5 {[%clk 0:01:32]} 25. Nf6 {[%clk 0:00:18]}  Nxf6 {[%clk 0:01:08]} 26. Bxf6 {[%clk 0:00:19]}  g4 {[%clk 0:01:02]} 27. Bd4 {[%clk 0:00:18]}  e2 {[%clk 0:00:56]} 28. Kd2 {[%clk 0:00:09]}  Bf4+ {[%clk 0:00:55]} 29. Kd3 {[%clk 0:00:08]}  Rd8 {[%clk 0:00:44]} 30. Kc4 {[%clk 0:00:03]}  Re8 {[%clk 0:00:40]} 31. Kd3 {[%clk 0:00:04]}  Bxh2 {[%clk 0:00:32]} 32. Rxe2 {[%clk 0:00:04]}  Rd8 {[%clk 0:00:31]} 33. Kc4 {[%clk 0:00:03]}  a6 {[%clk 0:00:30]} 34. Re6 {[%clk 0:00:04]}  Kc7 {[%clk 0:00:22]} 35. Re7+ {[%clk 0:00:04]}  Kc8 {[%clk 0:00:19]} 36. Rh7 {[%clk 0:00:04]}  Rd5 {[%clk 0:00:19]} 37. Rh6 {[%clk 0:00:03]}  Kd7 {[%clk 0:00:18]} 38. Rh7+ {[%clk 0:00:03]}  Ke6 {[%clk 0:00:17]} 39. a4 {[%clk 0:00:04]}  Kf5 {[%clk 0:00:17]} 40. b4 {[%clk 0:00:04]}  Ke4 {[%clk 0:00:17]} 41. Re7+ {[%clk 0:00:04]}  Kf4 {[%clk 0:00:17]} 42. Ra7 {[%clk 0:00:04]}  Rxd4+ {[%clk 0:00:14]} 43. Kxd4 {[%clk 0:00:04]}  Bg1+ {[%clk 0:00:15]} 0-1


[Site "https://www.chess.com"]

[Event "Titled Tuesday Blitz April 4 Early 2023"]
[White "De La Colina, Nicolas"]
[Black "Mohammed, Zozek Salah Mohammed"]
[WhiteFideId "30946921"]
[BlackFideId "4803361"]
[WhiteElo "2046"]
[BlackElo "2211"]
[Result "1-0"]
[Round "02"]
[TimeControl "180+2"]
[Date "2023.04.04"]
[WhiteClock "0:02:10"]
[BlackClock "0:02:50"]

1. Nf3 {[%clk 0:03:00]}  d5 {[%clk 0:02:59]} 2. c4 {[%clk 0:03:01]}  c6 {[%clk 0:02:58]} 3. e3 {[%clk 0:03:01]}  Nf6 {[%clk 0:02:58]} 4. Nc3 {[%clk 0:03:01]}  g6 {[%clk 0:02:59]} 5. d4 {[%clk 0:02:52]}  Bg7 {[%clk 0:02:59]} 6. Be2 {[%clk 0:02:51]}  O-O {[%clk 0:02:58]} 7. O-O {[%clk 0:02:52]}  Nbd7 {[%clk 0:02:58]} 8. b3 {[%clk 0:02:50]}  Re8 {[%clk 0:02:56]} 9. Bb2 {[%clk 0:02:50]}  e5 {[%clk 0:02:54]} 10. dxe5 {[%clk 0:02:40]}  Nxe5 {[%clk 0:02:55]} 11. Nxe5 {[%clk 0:02:40]}  Rxe5 {[%clk 0:02:55]} 12. cxd5 {[%clk 0:02:36]}  Nxd5 {[%clk 0:02:50]} 13. e4 {[%clk 0:02:10]} 1-0


[Site "https://www.chess.com"]

[Event "Titled Tuesday Blitz April 4 Early 2023"]
[White "Kukreja, Sankalp"]
[Black "Prohaszka, Peter"]
[WhiteFideId "45027676"]
[BlackFideId "726265"]
[WhiteElo "2126"]
[BlackElo "2626"]
[Result "0-1"]
[Round "02"]
[TimeControl "180+2"]
[Date "2023.04.04"]
[WhiteClock "0:00:09"]
[BlackClock "0:00:41"]

1. e4 {[%clk 0:02:20]}  c6 {[%clk 0:02:59]} 2. d4 {[%clk 0:02:20]}  d5 {[%clk 0:03:00]} 3. exd5 {[%clk 0:02:21]}  cxd5 {[%clk 0:03:01]} 4. c4 {[%clk 0:02:21]}  Nf6 {[%clk 0:03:02]} 5. Nc3 {[%clk 0:02:22]}  Nc6 {[%clk 0:03:02]} 6. Nf3 {[%clk 0:02:22]}  Bg4 {[%clk 0:03:00]} 7. cxd5 {[%clk 0:02:13]}  Nxd5 {[%clk 0:03:01]} 8. Qb3 {[%clk 0:02:13]}  Bxf3 {[%clk 0:03:01]} 9. gxf3 {[%clk 0:02:13]}  Nb6 {[%clk 0:03:00]} 10. d5 {[%clk 0:02:10]}  Nd4 {[%clk 0:03:00]} 11. Bb5+ {[%clk 0:02:08]}  Nd7 {[%clk 0:02:57]} 12. Qa4 {[%clk 0:01:57]}  Nxb5 {[%clk 0:02:56]} 13. Qxb5 {[%clk 0:01:45]}  g6 {[%clk 0:02:44]} 14. Bf4 {[%clk 0:01:31]}  Bg7 {[%clk 0:02:43]} 15. d6 {[%clk 0:01:12]}  O-O {[%clk 0:02:38]} 16. O-O {[%clk 0:01:07]}  exd6 {[%clk 0:02:17]} 17. Bxd6 {[%clk 0:01:06]}  Re8 {[%clk 0:02:14]} 18. Nd5 {[%clk 0:00:58]}  Ne5 {[%clk 0:01:55]} 19. Bxe5 {[%clk 0:00:11]}  Rxe5 {[%clk 0:01:55]} 20. Rad1 {[%clk 0:00:10]}  Qh4 {[%clk 0:01:25]} 21. Qxb7 {[%clk 0:00:10]}  Rf8 {[%clk 0:01:14]} 22. Qb4 {[%clk 0:00:10]}  Qg5+ {[%clk 0:00:49]} 23. Qg4 {[%clk 0:00:08]}  Rxd5 {[%clk 0:00:49]} 24. h4 {[%clk 0:00:05]}  Qxg4+ {[%clk 0:00:44]} 25. fxg4 {[%clk 0:00:06]}  Rxd1 {[%clk 0:00:45]} 26. Rxd1 {[%clk 0:00:07]}  Bxb2 {[%clk 0:00:45]} 27. Rb1 {[%clk 0:00:07]}  Bd4 {[%clk 0:00:45]} 28. Rb7 {[%clk 0:00:08]}  Kg7 {[%clk 0:00:43]} 29. Kf1 {[%clk 0:00:08]}  Rc8 {[%clk 0:00:42]} 30. Rd7 {[%clk 0:00:09]}  Bb6 {[%clk 0:00:41]} 31. Kg2 {[%clk 0:00:09]}  Rc2 {[%clk 0:00:41]} 0-1


[Site "https://www.chess.com"]

[Event "Titled Tuesday Blitz April 4 Early 2023"]
[White "Ramirez Vido, Robert Yorisan"]
[Black "Salemgareev, Tagir"]
[WhiteFideId "3513823"]
[BlackFideId "24199052"]
[WhiteElo "2397"]
[BlackElo "2360"]
[Result "0-1"]
[Round "02"]
[TimeControl "180+2"]
[Date "2023.04.04"]
[WhiteClock "0:00:33"]
[BlackClock "0:00:23"]

1. f4 {[%clk 0:02:58]}  d5 {[%clk 0:02:58]} 2. Nf3 {[%clk 0:02:57]}  Bg4 {[%clk 0:02:57]} 3. e3 {[%clk 0:02:55]}  Nf6 {[%clk 0:02:57]} 4. Be2 {[%clk 0:02:51]}  e6 {[%clk 0:02:57]} 5. O-O {[%clk 0:02:51]}  Bd6 {[%clk 0:02:54]} 6. b3 {[%clk 0:02:43]}  O-O {[%clk 0:02:53]} 7. Bb2 {[%clk 0:02:43]}  c5 {[%clk 0:02:52]} 8. Ne5 {[%clk 0:02:41]}  Bxe2 {[%clk 0:02:51]} 9. Qxe2 {[%clk 0:02:42]}  Ne8 {[%clk 0:02:46]} 10. d3 {[%clk 0:02:40]}  f6 {[%clk 0:02:45]} 11. Nf3 {[%clk 0:02:40]}  Nc6 {[%clk 0:02:45]} 12. Nbd2 {[%clk 0:02:40]}  Qd7 {[%clk 0:02:41]} 13. Rae1 {[%clk 0:02:40]}  b5 {[%clk 0:02:32]} 14. c4 {[%clk 0:02:39]}  Nc7 {[%clk 0:02:30]} 15. g3 {[%clk 0:02:31]}  a5 {[%clk 0:02:30]} 16. e4 {[%clk 0:02:28]}  d4 {[%clk 0:02:17]} 17. e5 {[%clk 0:02:21]}  fxe5 {[%clk 0:02:17]} 18. fxe5 {[%clk 0:02:14]}  Be7 {[%clk 0:02:16]} 19. Ne4 {[%clk 0:02:11]}  bxc4 {[%clk 0:02:10]} 20. bxc4 {[%clk 0:02:10]}  Rab8 {[%clk 0:02:07]} 21. Ba3 {[%clk 0:02:10]}  Na6 {[%clk 0:02:00]} 22. Nd6 {[%clk 0:01:46]}  Nab4 {[%clk 0:01:59]} 23. Bxb4 {[%clk 0:01:34]}  axb4 {[%clk 0:01:48]} 24. Nd2 {[%clk 0:01:15]}  Rxf1+ {[%clk 0:01:29]} 25. Kxf1 {[%clk 0:01:15]}  Ra8 {[%clk 0:00:50]} 26. Nb3 {[%clk 0:01:14]}  Nxe5 {[%clk 0:00:42]} 27. Qxe5 {[%clk 0:01:07]}  Bxd6 {[%clk 0:00:38]} 28. Qxe6+ {[%clk 0:01:00]}  Qf7+ {[%clk 0:00:36]} 29. Kg1 {[%clk 0:00:49]}  Rxa2 {[%clk 0:00:31]} 30. Qc8+ {[%clk 0:00:40]}  Bf8 {[%clk 0:00:30]} 31. Rf1 {[%clk 0:00:40]}  Qe7 {[%clk 0:00:27]} 32. Nxc5 {[%clk 0:00:35]}  Qxc5 {[%clk 0:00:23]} 33. Qxc5 {[%clk 0:00:33]}  Bxc5 {[%clk 0:00:23]} 0-1


[Site "https://www.chess.com"]

[Event "Titled Tuesday Blitz April 4 Early 2023"]
[White "Fishchuk, Vladyslav"]
[Black "Yanayt, Eugene"]
[WhiteFideId "34122117"]
[BlackFideId "2020165"]
[WhiteElo "2082"]
[BlackElo "2083"]
[Result "1-0"]
[Round "02"]
[TimeControl "180+2"]
[Date "2023.04.04"]
[WhiteClock "0:02:13"]
[BlackClock "0:02:08"]

1. d4 {[%clk 0:03:00]}  Nf6 {[%clk 0:02:59]} 2. Nc3 {[%clk 0:03:00]}  g6 {[%clk 0:03:00]} 3. e4 {[%clk 0:03:00]}  d5 {[%clk 0:03:00]} 4. e5 {[%clk 0:02:59]}  Ne4 {[%clk 0:03:01]} 5. Nce2 {[%clk 0:02:57]}  e6 {[%clk 0:03:00]} 6. f3 {[%clk 0:02:52]}  Ng5 {[%clk 0:03:00]} 7. h4 {[%clk 0:02:52]}  Be7 {[%clk 0:03:00]} 8. hxg5 {[%clk 0:02:51]}  Bxg5 {[%clk 0:03:00]} 9. Bxg5 {[%clk 0:02:51]}  Qxg5 {[%clk 0:03:00]} 10. f4 {[%clk 0:02:51]}  Qe7 {[%clk 0:02:57]} 11. Nf3 {[%clk 0:02:51]}  c5 {[%clk 0:02:57]} 12. c3 {[%clk 0:02:50]}  Nc6 {[%clk 0:02:56]} 13. Qd2 {[%clk 0:02:50]}  b5 {[%clk 0:02:56]} 14. g4 {[%clk 0:02:46]}  a5 {[%clk 0:02:53]} 15. Ng3 {[%clk 0:02:47]}  b4 {[%clk 0:02:52]} 16. Bb5 {[%clk 0:02:41]}  Bd7 {[%clk 0:02:50]} 17. f5 {[%clk 0:02:34]}  Nxe5 {[%clk 0:02:41]} 18. Nxe5 {[%clk 0:02:28]}  Bxb5 {[%clk 0:02:40]} 19. fxg6 {[%clk 0:02:27]}  O-O-O {[%clk 0:02:30]} 20. Nxf7 {[%clk 0:02:20]}  e5 {[%clk 0:02:16]} 21. Nf5 {[%clk 0:02:16]}  Qf6 {[%clk 0:02:10]} 22. dxe5 {[%clk 0:02:14]}  Qxg6 {[%clk 0:02:08]} 23. Ne7+ {[%clk 0:02:13]} 1-0


[Site "https://www.chess.com"]

[Event "Titled Tuesday Blitz April 4 Early 2023"]
[White "Guzman Moneo, Alberto"]
[Black "Sielecki, Christof"]
[WhiteFideId "2209616"]
[BlackFideId "4620437"]
[WhiteElo "2157"]
[BlackElo "2443"]
[Result "0-1"]
[Round "02"]
[TimeControl "180+2"]
[Date "2023.04.04"]
[WhiteClock "0:00:02"]
[BlackClock "0:00:09"]

1. e4 {[%clk 0:02:52]}  c5 {[%clk 0:02:59]} 2. Nc3 {[%clk 0:02:52]}  a6 {[%clk 0:02:59]} 3. Nf3 {[%clk 0:02:49]}  b5 {[%clk 0:02:58]} 4. d4 {[%clk 0:02:49]}  cxd4 {[%clk 0:02:59]} 5. Nxd4 {[%clk 0:02:49]}  e6 {[%clk 0:02:59]} 6. Bd3 {[%clk 0:02:49]}  Qb6 {[%clk 0:02:59]} 7. Nb3 {[%clk 0:02:47]}  Qc7 {[%clk 0:02:59]} 8. O-O {[%clk 0:02:46]}  Bb7 {[%clk 0:02:59]} 9. f4 {[%clk 0:02:45]}  b4 {[%clk 0:02:56]} 10. Ne2 {[%clk 0:02:33]}  Nf6 {[%clk 0:02:56]} 11. Ng3 {[%clk 0:02:30]}  h5 {[%clk 0:02:56]} 12. e5 {[%clk 0:02:26]}  h4 {[%clk 0:02:47]} 13. exf6 {[%clk 0:02:13]}  hxg3 {[%clk 0:02:46]} 14. hxg3 {[%clk 0:02:09]}  gxf6 {[%clk 0:02:34]} 15. Be3 {[%clk 0:02:07]}  Nc6 {[%clk 0:02:13]} 16. Qe2 {[%clk 0:02:00]}  Ne7 {[%clk 0:01:56]} 17. c4 {[%clk 0:01:46]}  bxc3 {[%clk 0:01:53]} 18. Rac1 {[%clk 0:01:46]}  Nd5 {[%clk 0:01:48]} 19. Bf2 {[%clk 0:01:41]}  Bd6 {[%clk 0:01:33]} 20. bxc3 {[%clk 0:01:32]}  Bxf4 {[%clk 0:01:30]} 21. c4 {[%clk 0:01:10]}  Bxc1 {[%clk 0:00:29]} 22. cxd5 {[%clk 0:01:05]}  Ba3 {[%clk 0:00:24]} 23. Qf3 {[%clk 0:00:52]}  Be7 {[%clk 0:00:19]} 24. Rc1 {[%clk 0:00:38]}  Qe5 {[%clk 0:00:17]} 25. Bd4 {[%clk 0:00:32]}  Qxd5 {[%clk 0:00:16]} 26. Qxd5 {[%clk 0:00:26]}  Bxd5 {[%clk 0:00:17]} 27. Rd1 {[%clk 0:00:15]}  Rg8 {[%clk 0:00:17]} 28. Kf2 {[%clk 0:00:15]}  f5 {[%clk 0:00:16]} 29. Nc5 {[%clk 0:00:14]}  Bd6 {[%clk 0:00:16]} 30. Rb1 {[%clk 0:00:10]}  Bxg3+ {[%clk 0:00:15]} 31. Ke2 {[%clk 0:00:10]}  Bd6 {[%clk 0:00:14]} 32. Nb7 {[%clk 0:00:08]}  Rxg2+ {[%clk 0:00:13]} 33. Kf1 {[%clk 0:00:07]}  Be7 {[%clk 0:00:11]} 34. Bc4 {[%clk 0:00:06]}  Rg4 {[%clk 0:00:09]} 35. Bxd5 {[%clk 0:00:06]}  Rxd4 {[%clk 0:00:09]} 36. Bf3 {[%clk 0:00:05]}  Rc8 {[%clk 0:00:07]} 37. Kf2 {[%clk 0:00:05]}  Rdc4 {[%clk 0:00:08]} 38. Na5 {[%clk 0:00:04]}  Rc2+ {[%clk 0:00:08]} 39. Kg3 {[%clk 0:00:04]}  Rxa2 {[%clk 0:00:09]} 40. Rb7 {[%clk 0:00:04]}  Rxa5 {[%clk 0:00:08]} 41. Ra7 {[%clk 0:00:04]}  Rac5 {[%clk 0:00:08]} 42. Kf4 {[%clk 0:00:05]}  R5c7 {[%clk 0:00:09]} 43. Rxa6 {[%clk 0:00:04]}  f6 {[%clk 0:00:09]} 44. Bh5+ {[%clk 0:00:04]}  Kf8 {[%clk 0:00:09]} 45. Ra2 {[%clk 0:00:04]}  Bd6+ {[%clk 0:00:08]} 46. Kf3 {[%clk 0:00:04]}  Ke7 {[%clk 0:00:09]} 47. Bg6 {[%clk 0:00:02]}  Rc3+ {[%clk 0:00:09]} 48. Ke2 {[%clk 0:00:01]}  Rc2+ {[%clk 0:00:10]} 49. Kd1 {[%clk 0:00:02]}  Rxa2 {[%clk 0:00:10]} 50. Bxf5 {[%clk 0:00:03]}  exf5 {[%clk 0:00:08]} 51. Ke1 {[%clk 0:00:02]}  Rc1# {[%clk 0:00:09]} 0-1


[Site "https://www.chess.com"]

[Event "Titled Tuesday Blitz April 4 Early 2023"]
[White "Dixit, Nikhil"]
[Black "Avazkhonov, Alikhon"]
[WhiteFideId "5059534"]
[BlackFideId "14208504"]
[WhiteElo "2207"]
[BlackElo "1739"]
[Result "0-1"]
[Round "02"]
[TimeControl "180+2"]
[Date "2023.04.04"]
[WhiteClock "0:01:39"]
[BlackClock "0:00:44"]

1. e4 {[%clk 0:03:00]}  c5 {[%clk 0:02:59]} 2. Nf3 {[%clk 0:03:01]}  d6 {[%clk 0:02:59]} 3. Bb5+ {[%clk 0:03:01]}  Nd7 {[%clk 0:02:58]} 4. d4 {[%clk 0:03:01]}  cxd4 {[%clk 0:02:58]} 5. Qxd4 {[%clk 0:03:02]}  Nf6 {[%clk 0:02:56]} 6. Nc3 {[%clk 0:02:56]}  e6 {[%clk 0:02:54]} 7. Bg5 {[%clk 0:02:55]}  Be7 {[%clk 0:02:52]} 8. Bxf6 {[%clk 0:02:55]}  gxf6 {[%clk 0:02:46]} 9. O-O-O {[%clk 0:02:55]}  O-O {[%clk 0:02:45]} 10. Kb1 {[%clk 0:02:49]}  a6 {[%clk 0:02:42]} 11. Bd3 {[%clk 0:02:49]}  b5 {[%clk 0:02:35]} 12. Qe3 {[%clk 0:02:48]}  Re8 {[%clk 0:02:30]} 13. Qh6 {[%clk 0:02:47]}  Bf8 {[%clk 0:02:29]} 14. Qh5 {[%clk 0:02:47]}  Ne5 {[%clk 0:02:26]} 15. Nxe5 {[%clk 0:02:37]}  fxe5 {[%clk 0:02:26]} 16. f4 {[%clk 0:02:37]}  Qf6 {[%clk 0:02:22]} 17. f5 {[%clk 0:02:32]}  b4 {[%clk 0:02:18]} 18. Ne2 {[%clk 0:02:26]}  exf5 {[%clk 0:02:16]} 19. exf5 {[%clk 0:02:24]}  e4 {[%clk 0:02:12]} 20. Bc4 {[%clk 0:02:23]}  Qxf5 {[%clk 0:02:12]} 21. Qh4 {[%clk 0:02:19]}  Be6 {[%clk 0:01:41]} 22. Rdf1 {[%clk 0:02:10]}  Qe5 {[%clk 0:01:38]} 23. Bxe6 {[%clk 0:01:57]}  Rxe6 {[%clk 0:01:39]} 24. Nf4 {[%clk 0:01:53]}  Bg7 {[%clk 0:01:38]} 25. c3 {[%clk 0:01:50]}  bxc3 {[%clk 0:01:38]} 26. Nxe6 {[%clk 0:01:50]}  c2+ {[%clk 0:01:37]} 27. Kxc2 {[%clk 0:01:50]}  Qxb2+ {[%clk 0:01:37]} 28. Kd1 {[%clk 0:01:51]}  Qb1+ {[%clk 0:01:33]} 29. Ke2 {[%clk 0:01:47]}  Qd3+ {[%clk 0:01:33]} 30. Kf2 {[%clk 0:01:47]}  fxe6 {[%clk 0:01:13]} 31. Qg3 {[%clk 0:01:45]}  Rf8+ {[%clk 0:01:04]} 32. Ke1 {[%clk 0:01:45]}  Qb1+ {[%clk 0:00:55]} 33. Ke2 {[%clk 0:01:45]}  Qc2+ {[%clk 0:00:44]} 34. Ke1 {[%clk 0:01:39]}  Rb8 {[%clk 0:00:44]} 0-1


[Site "https://www.chess.com"]

[Event "Titled Tuesday Blitz April 4 Early 2023"]
[White "Hnydiuk, Aleksander"]
[Black "Carre, Sylvain"]
[WhiteFideId "1109057"]
[BlackFideId "642118"]
[WhiteElo "2374"]
[BlackElo "2105"]
[Result "1-0"]
[Round "02"]
[TimeControl "180+2"]
[Date "2023.04.04"]
[WhiteClock "0:00:23"]
[BlackClock "0:00:12"]

1. Nf3 {[%clk 0:03:00]}  d5 {[%clk 0:03:00]} 2. d4 {[%clk 0:03:00]}  Nf6 {[%clk 0:03:00]} 3. c4 {[%clk 0:03:00]}  c5 {[%clk 0:03:01]} 4. cxd5 {[%clk 0:02:50]}  cxd4 {[%clk 0:03:00]} 5. Qxd4 {[%clk 0:02:49]}  Qxd5 {[%clk 0:03:00]} 6. Nc3 {[%clk 0:02:48]}  Qxd4 {[%clk 0:03:01]} 7. Nxd4 {[%clk 0:02:49]}  a6 {[%clk 0:03:01]} 8. g3 {[%clk 0:02:48]}  e5 {[%clk 0:02:58]} 9. Nc2 {[%clk 0:02:48]}  Bd7 {[%clk 0:02:58]} 10. Bg2 {[%clk 0:02:46]}  Bc6 {[%clk 0:02:58]} 11. O-O {[%clk 0:02:43]}  Bxg2 {[%clk 0:02:57]} 12. Kxg2 {[%clk 0:02:44]}  Nc6 {[%clk 0:02:57]} 13. Bg5 {[%clk 0:02:42]}  Be7 {[%clk 0:02:57]} 14. Ne3 {[%clk 0:02:40]}  O-O {[%clk 0:02:48]} 15. Nf5 {[%clk 0:02:38]}  h6 {[%clk 0:02:36]} 16. Bxf6 {[%clk 0:02:22]}  Bxf6 {[%clk 0:02:36]} 17. Nd5 {[%clk 0:02:19]}  Bd8 {[%clk 0:02:28]} 18. Rac1 {[%clk 0:02:19]}  Kh7 {[%clk 0:02:27]} 19. Rfd1 {[%clk 0:02:18]}  g6 {[%clk 0:02:26]} 20. Nd6 {[%clk 0:02:18]}  Rb8 {[%clk 0:02:13]} 21. b3 {[%clk 0:02:06]}  Nd4 {[%clk 0:02:00]} 22. e3 {[%clk 0:02:06]}  Ne6 {[%clk 0:02:00]} 23. h4 {[%clk 0:01:59]}  Kg7 {[%clk 0:01:53]} 24. h5 {[%clk 0:01:49]}  Bg5 {[%clk 0:01:34]} 25. hxg6 {[%clk 0:01:48]}  fxg6 {[%clk 0:01:34]} 26. Nb6 {[%clk 0:01:29]}  Rfd8 {[%clk 0:01:24]} 27. Ndc4 {[%clk 0:01:29]}  Bf6 {[%clk 0:01:18]} 28. Nd7 {[%clk 0:01:11]}  Rbc8 {[%clk 0:01:18]} 29. Ncxe5 {[%clk 0:01:04]}  Rxc1 {[%clk 0:01:11]} 30. Rxc1 {[%clk 0:01:05]}  Bxe5 {[%clk 0:01:03]} 31. Nxe5 {[%clk 0:01:06]}  Rd2 {[%clk 0:01:03]} 32. a4 {[%clk 0:01:05]}  Rb2 {[%clk 0:01:02]} 33. Rc3 {[%clk 0:01:02]}  b5 {[%clk 0:01:00]} 34. Nd3 {[%clk 0:00:58]}  Rb1 {[%clk 0:00:59]} 35. a5 {[%clk 0:00:55]}  Ng5 {[%clk 0:00:55]} 36. b4 {[%clk 0:00:46]}  Rd1 {[%clk 0:00:41]} 37. Rc7+ {[%clk 0:00:41]}  Kf6 {[%clk 0:00:34]} 38. Rc6+ {[%clk 0:00:41]}  Kg7 {[%clk 0:00:33]} 39. Nf4 {[%clk 0:00:34]}  Ne4 {[%clk 0:00:28]} 40. Re6 {[%clk 0:00:27]}  g5 {[%clk 0:00:12]} 41. Nh5+ {[%clk 0:00:23]} 1-0


[Site "https://www.chess.com"]

[Event "Titled Tuesday Blitz April 4 Early 2023"]
[White "Ehlvest, Jaan"]
[Black "Ansh M Shah"]
[WhiteFideId "4500016"]
[BlackFideId "25033379"]
[WhiteElo "2442"]
[BlackElo "2084"]
[Result "1-0"]
[Round "02"]
[TimeControl "180+2"]
[Date "2023.04.04"]
[WhiteClock "0:01:14"]
[BlackClock "0:00:24"]

1. e4 {[%clk 0:02:53]}  c6 {[%clk 0:03:00]} 2. d4 {[%clk 0:02:52]}  d5 {[%clk 0:03:01]} 3. exd5 {[%clk 0:02:51]}  cxd5 {[%clk 0:03:00]} 4. Bd3 {[%clk 0:02:52]}  Nc6 {[%clk 0:03:01]} 5. c3 {[%clk 0:02:51]}  Nf6 {[%clk 0:03:02]} 6. h3 {[%clk 0:02:51]}  e5 {[%clk 0:03:01]} 7. dxe5 {[%clk 0:02:51]}  Nxe5 {[%clk 0:03:02]} 8. Nf3 {[%clk 0:02:51]}  Nxd3+ {[%clk 0:03:01]} 9. Qxd3 {[%clk 0:02:51]}  Bd6 {[%clk 0:03:02]} 10. O-O {[%clk 0:02:50]}  O-O {[%clk 0:02:57]} 11. Bg5 {[%clk 0:02:50]}  h6 {[%clk 0:02:55]} 12. Bh4 {[%clk 0:02:49]}  g5 {[%clk 0:02:56]} 13. Bg3 {[%clk 0:02:49]}  Bxg3 {[%clk 0:02:56]} 14. fxg3 {[%clk 0:02:49]}  Qb6+ {[%clk 0:02:54]} 15. Nd4 {[%clk 0:02:45]}  Ne4 {[%clk 0:02:49]} 16. Nd2 {[%clk 0:02:42]}  Qxb2 {[%clk 0:02:39]} 17. Nxe4 {[%clk 0:02:10]}  dxe4 {[%clk 0:02:40]} 18. Qe3 {[%clk 0:02:04]}  f5 {[%clk 0:01:58]} 19. h4 {[%clk 0:01:58]}  f4 {[%clk 0:01:31]} 20. Qxe4 {[%clk 0:01:51]}  Qxc3 {[%clk 0:01:30]} 21. Qg6+ {[%clk 0:01:50]}  Kh8 {[%clk 0:01:30]} 22. Qxh6+ {[%clk 0:01:50]}  Kg8 {[%clk 0:01:31]} 23. Qxg5+ {[%clk 0:01:50]}  Kh8 {[%clk 0:01:31]} 24. Qe5+ {[%clk 0:01:35]}  Kg8 {[%clk 0:01:25]} 25. gxf4 {[%clk 0:01:34]}  Bd7 {[%clk 0:01:01]} 26. Rac1 {[%clk 0:01:30]}  Qg3 {[%clk 0:00:55]} 27. Rc7 {[%clk 0:01:18]}  Bc6 {[%clk 0:00:25]} 28. Qe6+ {[%clk 0:01:14]}  Kh8 {[%clk 0:00:25]} 29. Qh6+ {[%clk 0:01:14]}  Kg8 {[%clk 0:00:24]} 30. Qh7# {[%clk 0:01:14]} 1-0


[Site "https://www.chess.com"]